Cogmind - Beta 17 @@@ ROGUE MODE // 2026.07.22 @ 02:20:15 Player: rz Result: Self-destructed Performance ------------- Evolutions (3) 1500 Regions Visited (9) 1800 Robots Destroyed (75) 375 Value Destroyed (2700) 2700 Prototype IDs (24) 480 Alien Tech Used (0) 0 Bonus (450) 450 TOTAL SCORE: 7305 Bonus ------- Aligned with FarCom 300 Met Imprinter 300 Friendly Fire -150 Cogmind --------- Core Integrity 343/700 Matter 294/300 Energy 99/100 System Corruption 7% Temperature Cool (0) Movement Core (50) Location -7/Zion Parts ------- > --- POWER (1) -------- (None) > --- PROPULSION (3) --- (None) > --- UTILITY (4) ------ (None) > --- WEAPON (5) ------- (None) > --- INVENTORY (5) ---- 0b10 Alert Chip Hardlight Generator Heavy Riot Gun Autogun Autogun Peak State ------------ > --- POWER ------------ Angular Momentum Engine > --- PROPULSION ------- Armored Treads Armored Treads Medium Treads > --- UTILITY ---------- Improved Heat Sink Large Storage Unit Weapon Cycler Hardened Medium Armor Plating > --- WEAPON ----------- Shock Rifle Riot Gun Heavy Riot Gun Wave Gun EMP Blaster > --- INVENTORY -------- Nuclear Core Angular Momentum Engine 0b10 Alert Chip Weapon Cycler Hardened Light Armor Plating Hardened Light Armor Plating Hardlight Generator Component Analysis Suite High-powered Tractor Beam Heavy Riot Gun Autogun Autogun Slug Cannon Makeshift Hammer [Rating: 48] Favorites ----------- Power Deuterium Engine Engine Deuterium Engine Power Core Light Nuclear Core Propulsion Armored Treads Treads Armored Treads Leg Aluminum Leg Utility Improved Heat Sink Device Improved Heat Sink Storage Large Storage Unit Protection Heavy Armor Plating Weapon Autogun Energy Gun Wave Gun Ballistic Gun Autogun Launcher EMP Blaster Impact Weapon Makeshift Hammer Slashing Weapon Katana Piercing Weapon Makeshift Spear Build | -11 -10 -10 -10 -9 -8 -7 -7 -7 -7 ------- Run | Yrd Mat Min Exi Min Mat Fac Low Low Zio Slots Evolved 6 | . . . . . 4 2 . . . Power . | . . . . . . . . . . Propulsion 1 | . . . . . . 1 . . . Utility 2 | . . . . . 2 . . . . Weapon 3 | . . . . . 2 1 . . . Parts Attached 62 | 6 . . . 4 23 4 8 1 16 Power 6 | 1 . . . 2 2 . . . 1 Engine 4 | 1 . . . 1 1 . . . 1 Core 2 | . . . . 1 1 . . . . Reactor . | . . . . . . . . . . Propulsion 16 | 2 . . . . 7 1 2 . 4 Treads 13 | 2 . . . . 4 1 2 . 4 Leg 3 | . . . . . 3 . . . . Wheel . | . . . . . . . . . . Hover . | . . . . . . . . . . Flight . | . . . . . . . . . . Utility 18 | 1 . . . 1 6 2 4 . 4 Device 9 | . . . . 1 2 1 2 . 3 Storage 2 | 1 . . . . 1 . . . . Processor . | . . . . . . . . . . Hackware . | . . . . . . . . . . Protection 7 | . . . . . 3 1 2 . 1 Artifact . | . . . . . . . . . . Weapon 22 | 2 . . . 1 8 1 2 1 7 Energy Gun 5 | . . . . . . . 1 1 3 Energy Cannon . | . . . . . . . . . . Ballistic Gun 12 | 2 . . . 1 7 1 1 . . Ballistic Cannon . | . . . . . . . . . . Launcher 1 | . . . . . . . . . 1 Special Weapon . | . . . . . . . . . . Impact Weapon 1 | . . . . . . . . . 1 Slashing Weapon 1 | . . . . . 1 . . . . Piercing Weapon 2 | . . . . . . . . . 2 Special Melee Weapon . | . . . . . . . . . . Unidentified Prototypes . | . . . . . . . . . . Parts Lost 34 | . . . . 4 8 . 7 1 14 Power 5 | . . . . 2 1 . . . 2 Propulsion 10 | . . . . 1 1 . 2 . 6 Utility 5 | . . . . . 2 . 2 . 1 Weapon 14 | . . . . 1 4 . 3 1 5 Highest Loss Streak 7 | . . . . 3 3 . 3 1 7 To Critical Strikes . | . . . . . . . . . . Average Backups 9 | 1 2 4 5 5 7 10 12 11 13 Power 1 | . 1 1 2 1 1 1 1 1 1 Propulsion 1 | . . . . . 2 2 1 1 . Utility 5 | . . . . 1 2 6 7 8 9 Weapon 1 | . 1 2 3 2 1 1 1 1 2 Tool/Special . | . . . . . . . . . . Unused Backups 14 | . . . . . 4 . . . 10 Power 3 | . . . . . 1 . . . 2 Propulsion 2 | . . . . . 2 . . . . Utility 7 | . . . . . 1 . . . 6 Weapon 2 | . . . . . . . . . 2 Tool/Special . | . . . . . . . . . . Average Slot Usage (%) 89 | . 85 85 85 91 94 94 89 84 83 Engine 6 | . 14 14 14 6 4 7 7 7 6 Core 1 | . . . . 7 3 . . . . Treads 21 | . 28 28 28 21 14 22 23 23 22 Device 7 | . . . . 12 11 7 6 7 7 Storage 8 | . 14 14 14 14 9 7 7 7 6 Protection 7 | . . . . . 12 9 6 7 6 Energy Gun 2 | . . . . . . . 1 7 8 Ballistic Gun 28 | . 28 28 28 28 35 38 34 23 18 Peak Build Rating 48 | 6 6 6 7 12 31 37 37 36 48 Average Rating 28 | 4 6 6 6 10 25 35 35 33 37 On Entrance 16 | . 6 6 6 7 9 28 37 31 34 Avg Prop Armor Cover (%) . | . . . . . . . . . . Naked Turns 15 | . . . . . . . . . 15 Heaviest Build 62 | 11 11 11 11 14 57 61 61 60 62 Greatest Support 68 | 40 40 40 40 40 43 63 63 60 68 Greatest Overweight (x) 3 | . . . . . 3 . . . 2 Average Overweight (x) . | . . . . . . . . . . Largest Inventory Capacity 15 | 8 8 8 8 8 15 15 15 15 15 Average Capacity 12 | 7 8 8 8 8 8 15 15 15 14 Most Carried 15 | 2 3 5 6 6 8 15 15 12 15 Average Carried 10 | 1 2 4 5 5 7 11 13 11 13 Final Capacity 15 | 8 8 8 8 8 15 15 15 15 5 Final Carried 14 | 2 3 5 6 6 8 14 12 12 5 Class Distribution -------------------- 30% | Scavenger-Tank 30% | Tank 17% | Mutant 10% | Scavenger-Skirmisher 8% | Skirmisher Dominant Class ---------------- Mutant | -10/Materials Mutant | -10/Mines Mutant | -10/Exiles Mutant | -9/Mines Scavenger-Skirmisher | -8/Materials Skirmisher | -7/Factory Tank | -7/Lower Caves Scavenger-Tank | -7/Lower Caves Tank | -7/Zion Resources | -11 -10 -10 -10 -9 -8 -7 -7 -7 -7 ----------- Run | Yrd Mat Min Exi Min Mat Fac Low Low Zio Matter Collected 2560 | 191 13 31 . 175 1048 38 777 113 174 Remotely 404 | . . . . . . . 404 . . Salvage Created 3019 | . 42 47 . 258 1333 38 720 213 368 Parts 160 | . 5 6 . 14 73 3 30 7 22 Haulers Intercepted . | . . . . . . . . . . Recyclers Shooed . | . . . . . . . . . . Parts Field Recycled . | . . . . . . . . . . Retrieved Matter . | . . . . . . . . . . Parts Self-Destructed 36 | . . . . . . . 24 7 5 Prevented . | . . . . . . . . . . Parts Restored . | . . . . . . . . . . Kills | -11 -10 -10 -10 -9 -8 -7 -7 -7 -7 ------- Run | Yrd Mat Min Exi Min Mat Fac Low Low Zio Combat Hostiles Destroyed 67 | . 3 3 . 6 28 1 18 4 4 Melee 4 | . . . . . . . . . 4 Guns 63 | . 3 3 . 6 28 1 18 4 . Classes Destroyed 14 | . 1 . . 1 7 1 2 . 2 Worker 3 | . . . . . 3 . . . . Recycler 2 | . . . . . 2 . . . . Swarmer 19 | . 3 3 . . 7 . 6 . . Grunt 23 | . . . . 6 8 . 5 4 . Brawler 3 | . . . . . 1 . 2 . . Duelist 3 | . . . . . 1 . 2 . . Sentry 7 | . . . . . 6 . 1 . . Specialist 4 | . . . . . 4 . . . . Hunter 1 | . . . . . 1 . . . . Programmer 1 | . . . . . . 1 . . . Behemoth 1 | . . . . . . . 1 . . Zionite 3 | . . . . . . . . . 3 Tinkerer 1 | . . . . . . . . . 1 Mutant 5 | . . . . . . . 1 . 4 Best Kill Streak 12 | . 3 3 . 3 12 1 7 4 4 Combat Bots Only 10 | . 3 3 . 3 10 1 7 4 4 Max Kills in Single Turn 2 | . 1 1 . 1 2 1 2 1 2 Gunslinging 1 | . . . . . 1 . 1 . . Exploded . | . . . . . . . . . . Melee 1 | . . . . . . . . . 1 Uniques/NPCs Destroyed . | . . . . . . . . . . Combat | -11 -10 -10 -10 -9 -8 -7 -7 -7 -7 -------- Run | Yrd Mat Min Exi Min Mat Fac Low Low Zio Hostile Shots Fired 658 | . 18 22 . 46 140 . 123 14 295 Missed 191 | . 1 5 . 11 37 . 35 3 99 Hits 467 | . 17 17 . 35 103 . 88 11 196 Melee 24 | . . . . . 13 . 8 . 3 Projectile 443 | . 17 17 . 35 90 . 80 11 193 Critical Strikes 13 | . . . . 1 3 . 5 . 4 Damage Taken 6630 | . 140 133 . 424 1552 . 1854 177 2350 Core 658 | . 21 22 . 33 225 . 137 13 207 Absorbed by Shields . | . . . . . . . . . . Core Remaining (%) 76 | 100 . . . 69 59 . . . . Volleys Fired 175 | . 4 7 . 28 66 1 55 10 4 Largest 5 | . 2 2 . 2 4 5 5 5 5 Hottest 274 | . 40 40 . 40 98 121 131 212 274 Shots Fired 596 | . 8 14 . 56 242 5 215 36 20 Gun 592 | . 8 14 . 56 242 5 215 36 16 Cannon . | . . . . . . . . . . Launcher 4 | . . . . . . . . . 4 Special . | . . . . . . . . . . Kinetic 555 | . 8 14 . 56 242 5 200 30 . Thermal 25 | . . . . . . . 15 6 4 Explosive . | . . . . . . . . . . Electromagnetic 16 | . . . . . . . . . 16 Robot Hit Streak 21 | . 4 4 . 13 21 2 15 5 5 Robot Miss Streak 7 | . 1 2 . 5 6 2 7 2 2 Penetration Max . | . . . . . . . . . . Secondary Targets 17 | . 1 1 . 1 6 . 8 . . Max Gunslinging Chain 1 | . 1 1 . 1 1 . 1 . . Shots Hit Robots 396 | . 5 7 . 42 155 4 137 22 24 Core Hits 174 | . 3 5 . 18 68 1 56 9 14 Critical Kills 2 | . . . . . . 1 . 1 . Critical Parts Destroyed 3 | . . . . . 2 . 1 . . Critical Strikes 7 | . . . . . 2 1 1 1 2 Destroy 5 | . . . . . 2 1 1 1 . Impale 2 | . . . . . . . . . 2 Melee Attacks 25 | . . . . . 4 . . . 21 Impact 1 | . . . . . . . . . 1 Slashing 4 | . . . . . 4 . . . . Piercing 20 | . . . . . . . . . 20 Sneak Attacks 1 | . . . . . . . . . 1 Combat Hostiles . | . . . . . . . . . . Follow-up Attacks 2 | . . . . . . . . . 2 Damage Inflicted 6219 | . 61 65 . 373 2298 75 2352 327 668 Guns 5622 | . 61 65 . 373 2298 75 2320 327 103 Cannons . | . . . . . . . . . . Explosions 100 | . . . . . . . . . 100 Melee 465 | . . . . . . . . . 465 Ramming 32 | . . . . . . . 32 . . Kinetic 5265 | . 61 65 . 373 2298 75 2146 247 . Thermal 365 | . . . . . . . 174 80 111 Explosive . | . . . . . . . . . . Electromagnetic 92 | . . . . . . . . . 92 Impact . | . . . . . . . . . . Slashing . | . . . . . . . . . . Piercing 465 | . . . . . . . . . 465 Highest Corruption 7 | . . . . . . . 1 1 7 Average Corruption 1 | . . . . . . . 1 1 4 Corruption Purged . | . . . . . . . . . . Corruption Blocked . | . . . . . . . . . . Effects 12 | . . . . . . . 3 5 4 Message Errors 6 | . . . . . . . 2 3 1 Matter Fused 4 | . . . . . . . 1 2 1 Energy Discharges 1 | . . . . . . . . . 1 Data Loss (minor) 1 | . . . . . . . . . 1 Overload Shots . | . . . . . . . . . . Overflow Damage 15 | . . . . . . . . . 15 Projectiles . | . . . . . . . . . . Explosions . | . . . . . . . . . . Melee 15 | . . . . . . . . . 15 Knockbacks . | . . . . . . . . . . Impact . | . . . . . . . . . . Kinetic . | . . . . . . . . . . Secondary . | . . . . . . . . . . Self-Inflicted Damage 16 | . . . . . . . . . 16 Shots 1 | . . . . . . . . . 1 Rammed 3 | . . . . . . . 3 . . Targets Rammed 3 | . . . . . . . 3 . . Kicked . | . . . . . . . . . . Crushed . | . . . . . . . . . . Highest Temperature 402 | . . . . 28 176 . 291 402 345 Average Temperature 88 | . . . . 13 25 . 124 178 143 Received Heat Transfer 1708 | . 18 . . 258 261 . 500 99 572 Effects 3 | . . . . . . . 3 . . Energy Bleed 1 | . . . . . . . 1 . . Interference 2 | . . . . . . . 2 . . Siege Activations . | . . . . . . . . . . Martial Activations . | . . . . . . . . . . Shielding Activations . | . . . . . . . . . . Robots Disrupted . | . . . . . . . . . . Combat Hostiles . | . . . . . . . . . . Robots Corrupted . | . . . . . . . . . . Combat Hostiles . | . . . . . . . . . . Parts Fried . | . . . . . . . . . . Impact Corruptions . | . . . . . . . . . . Robots Melted . | . . . . . . . . . . Combat Hostiles . | . . . . . . . . . . Parts Melted . | . . . . . . . . . . Heat Transferred 592 | . . . . . . . 407 148 37 Parts Sabotaged . | . . . . . . . . . . Parts Stolen . | . . . . . . . . . . Parts Stripped . | . . . . . . . . . . Power Chain Reactions 2 | . . . . . . . . . 2 Alert | -11 -10 -10 -10 -9 -8 -7 -7 -7 -7 ------- Run | Yrd Mat Min Exi Min Mat Fac Low Low Zio Maximum Alert Level 1 | . . . . . 1 . . . . Low Security (%) 76 | 100 100 100 . 100 54 100 . . . Level 1 23 | . . . . . 45 . . . . Level 2 . | . . . . . . . . . . Level 3 . | . . . . . . . . . . Level 4 . | . . . . . . . . . . Level 5 . | . . . . . . . . . . High Security . | . . . . . . . . . . Max Security . | . . . . . . . . . . Peak Influence 358 | . 70 93 . 50 358 98 . . . Initial 98 | . . 23 . . . 98 . . . Average 72 | . 11 47 . 11 127 14 . . . Influence Increases 1574 | . 70 70 . 140 774 30 400 90 . Destroy 0b10 Robot/C 1240 | . 60 60 . 120 560 20 340 80 . Destroy 0b10 Robot/NC 25 | . . . . . 25 . . . . Destroy Leader 220 | . 10 10 . 20 130 10 30 10 . Successful Hack 20 | . . . . . 20 . . . . Destroy Structure 9 | . . . . . 9 . . . . Partial Spotted 15 | . . . . . 15 . . . . Lose Combat Pursuer 45 | . . . . . 15 . 30 . . Influence Decreases 1574 | . 10 117 13 140 557 247 310 180 . Entered New Map 187 | . . 37 13 . . 119 . 18 . Time Decay 1102 | . 10 80 . 120 352 128 260 152 . Lost Part 135 | . . . . 20 55 . 50 10 . Purge Threat 150 | . . . . . 150 . . . . Squads Dispatched 7 | . 1 . . . 5 1 . . . Investigation . | . . . . . . . . . . Extermination 1 | . . . . . . 1 . . . Reinforcement 3 | . 1 . . . 2 . . . . Assault . | . . . . . . . . . . Garrison 3 | . . . . . 3 . . . . Intercept . | . . . . . . . . . . Searches Triggered . | . . . . . . . . . . Construction Impeded . | . . . . . . . . . . Haulers Reinforced . | . . . . . . . . . . Active Scanning Responses . | . . . . . . . . . . Cargo Convoy Interrupts . | . . . . . . . . . . Stealth | -11 -10 -10 -10 -9 -8 -7 -7 -7 -7 --------- Run | Yrd Mat Min Exi Min Mat Fac Low Low Zio Distress Signals 3 | . 1 . . . 2 . . . . Communications Jammed . | . . . . . . . . . . Distress Signals . | . . . . . . . . . . Times Spotted 110 | . 8 3 . 5 41 3 23 4 23 Peak Tracking Total 14 | . 4 3 . 3 8 2 9 4 14 Tactical Retreats 3 | . . . . . 1 . 1 . 1 Traps | -11 -10 -10 -10 -9 -8 -7 -7 -7 -7 ------- Run | Yrd Mat Min Exi Min Mat Fac Low Low Zio Traps Triggered 1 | . . . . . 1 . . . . Indirectly . | . . . . . . . . . . Trap Hack Attempts . | . . . . . . . . . . Triggered . | . . . . . . . . . . Disarmed . | . . . . . . . . . . Reprogrammed . | . . . . . . . . . . Reused . | . . . . . . . . . . Traps Extracted . | . . . . . . . . . . Installed . | . . . . . . . . . . Triggered . | . . . . . . . . . . Machines | -11 -10 -10 -10 -9 -8 -7 -7 -7 -7 ---------- Run | Yrd Mat Min Exi Min Mat Fac Low Low Zio Machines Disabled 1 | . . . . . . . 1 . . Max in Single Turn 1 | . . . . . . . 1 . . Machines Repaired . | . . . . . . . . . . Machines Dismantled . | . . . . . . . . . . Machines Sabotaged . | . . . . . . . . . . Overloaded Fab Kills . | . . . . . . . . . . Hacking | -11 -10 -10 -10 -9 -8 -7 -7 -7 -7 --------- Run | Yrd Mat Min Exi Min Mat Fac Low Low Zio Machines Accessed 8 | . 1 . 1 . 4 2 . . . Terminals 6 | . 1 . . . 3 2 . . . Fabricators . | . . . . . . . . . . Repair Stations . | . . . . . . . . . . Recycling Units . | . . . . . . . . . . Scanalyzers 1 | . . . . . 1 . . . . Garrison Access . | . . . . . . . . . . Total Hacks 22 | . 2 . 1 . 13 6 . . . Successful 7 | . . . 1 . 5 1 . . . Failed 15 | . 2 . . . 8 5 . . . Catastrophic 2 | . 1 . . . . 1 . . . Database Lockouts . | . . . . . . . . . . Manual 18 | . 2 . 1 . 8 5 . . 2 Terminals 18 | . 2 . . . 10 6 . . . Fabricators . | . . . . . . . . . . Repair Stations . | . . . . . . . . . . Recycling Units . | . . . . . . . . . . Scanalyzers 3 | . . . . . 3 . . . . Garrison Access . | . . . . . . . . . . Terminal Hacks 7 | . . . 1 . 5 1 . . . Branch Access Points 1 | . . . . . 1 . . . . Unreport Threat 2 | . . . . . 2 . . . . Zone Layout 3 | . . . . . 2 1 . . . Proto ID Catalog 1 | . . . 1 . . . . . . Fabricator Hacks . | . . . . . . . . . . Repair Station Hacks . | . . . . . . . . . . Recycling Unit Hacks . | . . . . . . . . . . Scanalyzer . | . . . . . . . . . . Garrison Access Hacks . | . . . . . . . . . . Unauthorized Hacks . | . . . . . . . . . . Terminals . | . . . . . . . . . . Fabricators . | . . . . . . . . . . Repair Stations . | . . . . . . . . . . Recycling Units . | . . . . . . . . . . Scanalyzers . | . . . . . . . . . . Garrison Access . | . . . . . . . . . . Data Cores Recovered . | . . . . . . . . . . Used . | . . . . . . . . . . Hacking Detections 7 | . 1 . . . 4 2 . . . Full Trace Events . | . . . . . . . . . . Feedback Events . | . . . . . . . . . . Feedback Blocked . | . . . . . . . . . . Robot Schematics Acquired . | . . . . . . . . . . Robots Built . | . . . . . . . . . . Authchips . | . . . . . . . . . . Time . | . . . . . . . . . . Total Robot Build Rating . | . . . . . . . . . . Part Schematics Acquired . | . . . . . . . . . . Parts Built . | . . . . . . . . . . Authchips . | . . . . . . . . . . Time . | . . . . . . . . . . Total Part Build Rating . | . . . . . . . . . . Part Studies Acquired . | . . . . . . . . . . Parts Repaired . | . . . . . . . . . . Time . | . . . . . . . . . . Parts Recycled . | . . . . . . . . . . Recycled Matter . | . . . . . . . . . . Retrieved Matter . | . . . . . . . . . . Retrieved Components . | . . . . . . . . . . Parts Scanalyzed . | . . . . . . . . . . Part Schematics Acquired . | . . . . . . . . . . Parts Damaged . | . . . . . . . . . . Bothacking | -11 -10 -10 -10 -9 -8 -7 -7 -7 -7 ------------ Run | Yrd Mat Min Exi Min Mat Fac Low Low Zio Used RIF Installer . | . . . . . . . . . . Robots Hacked . | . . . . . . . . . . Non-combat . | . . . . . . . . . . Combat . | . . . . . . . . . . Robot Hacks Applied . | . . . . . . . . . . Relay Couplers Released . | . . . . . . . . . . Fabnet Peak Effective % . | . . . . . . . . . . Robots Rewired . | . . . . . . . . . . Allies Hacked . | . . . . . . . . . . Hacks Repelled . | . . . . . . . . . . Allies | -11 -10 -10 -10 -9 -8 -7 -7 -7 -7 -------- Run | Yrd Mat Min Exi Min Mat Fac Low Low Zio Total Allies 1 | . . . . . . . . . 1 Largest Group 1 | . . . . . . . . . 1 Highest-Rated Group 96 | . . . . . . . . . 96 Highest-Rated Ally 96 | . . . . . . . . . 96 Total Orders . | . . . . . . . . . . Ally Attacks 1 | . . . . . . . . . 1 Total Damage 50 | . . . . . . . . . 50 Kills 1 | . . . . . . . . . 1 Allies Corrupted . | . . . . . . . . . . Allies Melted . | . . . . . . . . . . Intel | -11 -10 -10 -10 -9 -8 -7 -7 -7 -7 ------- Run | Yrd Mat Min Exi Min Mat Fac Low Low Zio Active Infowar (turns) . | . . . . . . . . . . Robot Analysis Total . | . . . . . . . . . . Derelict Logs Recovered 2 | . . . . 1 . . 1 . . Drone Launches . | . . . . . . . . . . Drone Recoveries . | . . . . . . . . . . Exploration | -11 -10 -10 -10 -9 -8 -7 -7 -7 -7 ------------- Run | Yrd Mat Min Exi Min Mat Fac Low Low Zio Turns Passed 7182 | 55 135 179 341 488 1727 810 828 1006 1613 Spaces Moved 3545 | 29 68 86 213 253 515 484 382 589 926 Core 23 | 1 . . . . 2 . . . 20 Treads 3445 | 28 68 86 213 253 436 484 382 589 906 Legs 77 | . . . . . 77 . . . . Wheels . | . . . . . . . . . . Hover . | . . . . . . . . . . Flight . | . . . . . . . . . . Fastest Speed 50 | 50 160 160 160 160 120 163 163 166 50 Average Speed 166 | 156 160 160 160 160 185 163 163 166 164 Slowest Speed 330 | 160 160 160 160 160 250 163 166 166 330 Overloaded Moves . | . . . . . . . . . . Propulsion Burnouts . | . . . . . . . . . . Robots Hopped . | . . . . . . . . . . Potential Cave-ins . | . . . . . . . . . . Cave-ins Triggered . | . . . . . . . . . . Exploration Rate (%) 43 | 4 30 18 41 67 45 13 73 66 80 Regions Visited 9 Branch Regions 6 Pre-discovered Areas 1 | . . . . 1 . . . . . Known Exits Taken . | . . . . . . . . . . Unknown Exits Taken 9 | 1 1 1 1 1 1 1 1 1 . Scrap Searched 10 | . . . . 2 . . 2 2 4 Spaces Dug 4 | . . . . . 4 . . . . Terrain Destroyed 9 | . . . . . 4 . . . 5 Melee 4 | . . . . . 4 . . . . Projectile . | . . . . . . . . . . AOE 5 | . . . . . . . . . 5 Terrain Rammed . | . . . . . . . . . . Walls Destroyed . | . . . . . . . . . . Machines Disabled . | . . . . . . . . . . Actions | -11 -10 -10 -10 -9 -8 -7 -7 -7 -7 --------- Run | Yrd Mat Min Exi Min Mat Fac Low Low Zio Total 4449 | 36 87 115 213 289 1143 504 474 600 988 Wait 563 | . 15 21 . 2 492 4 19 . 10 Move 3536 | 28 67 85 212 252 514 483 381 588 926 Hop . | . . . . . . . . . . Pick Up 47 | 2 1 2 1 2 17 6 7 1 8 Fast Attach 30 | 6 . . . 1 13 1 1 . 8 Attach 26 | . . . . 3 10 3 6 1 3 Detach 2 | . . . . . 1 1 . . . Swap 19 | . . . . 1 11 . 1 . 6 Drop 24 | . . . . . 15 2 1 . 6 Fire 175 | . 4 7 . 28 66 1 55 10 4 Melee 21 | . . . . . 4 . . . 17 Ram . | . . . . . . . . . . Kick . | . . . . . . . . . . Crush 3 | . . . . . . . 3 . . Escape Stasis . | . . . . . . . . . . Rewire 3 | . . . . . . 3 . . . Trap . | . . . . . . . . . . Miscellaneous . | . . . . . . . . . . Route ------- -11/Scrapyard -10/Materials (discovered 2 exits: [*Mat] / [*Min]) -10/Mines (discovered 2 exits: [*Mat] / *Exi) -10/Exiles -9/Mines (discovered 2 exits: *Mat x2) -8/Materials -7/Factory -7/Lower Caves -7/Lower Caves -7/Zion History --------- Turn | Location | Event 11 | -11/Scrapyard | Discovered new exit (range 15) 56 | -11/Scrapyard | Entered Materials 145 | -10/Materials | Discovered new exit (range 16) 188 | -10/Materials | Discovered new exit (range 15) 191 | -10/Materials | Entered Mines 245 | -10/Mines | Discovered new exit (range 7) 304 | -10/Mines | Build established: Mutant 364 | -10/Mines | Deemed a non-threat by the Exiles lab entrance 364 | -10/Mines | Discovered new exit (range 5) 370 | -10/Mines | Entered Exiles 391 | -10/Exiles | Discovered new exit (range 15) 409 | -10/Exiles | Met 8R-AWN 436 | -10/Exiles | Met EX-HEX 486 | -10/Exiles | Met EX-BIN 503 | -10/Exiles | Aligned with FarCom system 505 | -10/Exiles | Given EX-Vault access code 542 | -10/Exiles | Opened EX-Vault 553 | -10/Exiles | Found 0b10 Alert Chip 586 | -10/Exiles | Warned to stay clear of 0b10 Research branches 711 | -10/Exiles | Left Exiles lab with 0b10 Alert Chip 711 | -10/Exiles | Entered Mines 1025 | -9/Mines | Lost 3 parts (1p1n1w) 1151 | -9/Mines | Discovered new exit (range 11) 1174 | -9/Mines | Learned location of Zion (-7) 1174 | -9/Mines | Discovered new exit (range 10) 1199 | -9/Mines | Entered Materials 1199 | -8/Materials | Evolved 4 slots: Utility x2, Weapon x2 1432 | -8/Materials | Lost 3 parts (1p1n1w) 1564 | -8/Materials | Build established: Scavenger-Skirmisher 2018 | -8/Materials | Garrison activated, responded to threat 2113 | -8/Materials | Destroyed 10 combat bots 2768 | -8/Materials | Build established: Scavenger-Tank 2899 | -8/Materials | Discovered new exit (range 7) 2926 | -8/Materials | Entered Factory 2926 | -7/Factory | Evolved 2 slots: Propulsion x1, Weapon x1 3489 | -7/Factory | Build established: Skirmisher 3707 | -7/Factory | Discovered new exit (range 15) 3736 | -7/Factory | Entered Lower Caves 4040 | -7/Lower Caves | Build established: Tank 4084 | -7/Lower Caves | Attacked by a delusional Derelict stockpiling parts 4247 | -7/Lower Caves | Spotted B-75 Beast 4300 | -7/Lower Caves | Destroyed B-75 Beast 4369 | -7/Lower Caves | Attracted the attention of an 0b10 outpost 4421 | -7/Lower Caves | Lost 3 parts (1u2w) 4429 | -7/Lower Caves | Learned Factory emergency access door positions 4448 | -7/Lower Caves | Destroyed 7 combat bots 4553 | -7/Lower Caves | Discovered new exit (range 9) 4564 | -7/Lower Caves | Entered another Lower Caves area 4794 | -7/Lower Caves | Build established: Scavenger-Tank 5562 | -7/Lower Caves | Discovered new exit (range 5) 5570 | -7/Lower Caves | Entered Zion 5647 | -7/Zion | System corruption cleaned by Quarantine Array 5839 | -7/Zion | Given A8's code to call for help 5985 | -7/Zion | Found Prototype Device 6008 | -7/Zion | Identified Phasing AFG 6273 | -7/Zion | Build established: Tank 6491 | -7/Zion | Rebuked by Imprinter 6976 | -7/Zion | Attacked by Zionites 7041 | -7/Zion | Lost 7 parts (1p4n1u1w) 7168 | -7/Zion | Core integrity fell below 50% 7168 | -7/Zion | Released all parts (6) 7180 | -7/Zion | Enhanced Grunt warped into view, answering call for help 7183 | -7/Zion | Self-destructed Last Messages --------------- 10-18D(z) bursts out of the Twisted Machinery. 07166_ 10-18D(z) pulls a Mak. Shrapnel Gun out of the Twisted Machinery. 07167_ Arm. Treads destroyed. 07167_ Med. Treads destroyed. 07168_ System corrupted: Matter fused (-6). 07168_ Released Arm. Treads. 07168_ Released Wave Gun. 07168_ Released Lrg. Storage Unit. 07168_ Released Imp. Heat Sink. 07168_ Released Weapon Cycler. 07168_ Released Hrd. Medium Armor Plating. 07177_ Connecting with Deep Containment System... 07177_ Current location identified: Zion 07177_ Transmitting encrypted signal... >>\\CW7M Transmitting encrypted signal... 07180_ Enhanced Grunt warps into view. 07182_ Z7-Y2D(z) destroyed. Map ----- +----------------------------------------------------+ | ??????????????????????????????????????????????? | | ??????????????????????????????????????????????? | | ??????????????????????????????????????????????? | | ??????????????????????????????????????????????? | | ??????????????????????????????????????????????? | | ???????????????????????????????????????#####??? | | ???????????????????????????????????????#"" "##? | | ??????????????????????????????????????##"" " #? | | ??????????????????????????????????????#" #? | | ??????????????????????????????????????#"" ""## | | ??????????????????????????????????????#### #"" | | ??????????????????????????????????????# " | | ???????????????????????????????????#### | | ??????????????????????????????????##""" " | | ??????????????????????????????????#"""""""" | | ???????????????????????????????####"" | | ?????????????????????????????###""#" | | ?????????????????????????????""""""" | | ?????????????????????????????#"" | | ?????????????????????######??""""" | | ??????????????????????"#""#???#"""" | | ??????????????????????#"""#####""#"" """ | | ??????????????????????" X""#"#""##""" """" | | ??????????????????????# ""#""#""#""" """" | | ?????????????????????## """z """""" """ | | ?????????????????????"@ g """ | | ?????????????????????" [%z M "" | | ?????????????????????# """"""""""" ! "" | | ???????????????????"""""""""#"zz"""""!*! "" | | ??????????????????#"""""##########"""!* " "" | | ??????????????????######"???##"##""""=!""" | | ????????????????????????#??##""""" "[/""" | | ?????????????????????????###"""" !!]""" " | | ?????????????????????????#"""" "" !! "" " | | ?????????????????????????#""" " """ " | | ?????????????????????????#""" "" """ " | | ?????????????????????????###"" "" " | | ???????????????????????????#"" """" " | | ???????????????????????????##""""" """" " | | ???????????????????????????#""#"""" ! | | ???????????????????????????###"#"#""% " | | ?????????????????????????????####"""= " | | ????????????????????????????????##" %[ " | | ????????????????????????????????##" """" | | ????????????????????????????????#"" "" "#"" | | ????????????????????????????????##" """"""" | | ???????????????????????????????##"" """"""" | | ???????????????????????????????#"""" "" """" | | ?????????????????????????????###""" "#" | | ?????????????????????????????#"""" """" | +----------------------------------------------------+ Best States ------------- Heat Dissipation 61 Energy Generation 18 Energy Capacity 300 Matter Stores 300 Matter Capacity 300 Sight Range 16 Terrain Scan Density 10 Armor Coverage 600 Weapon Cycling 15 Evasion (%) 50 Recoil Reduction 3 Item Schematics ----------------- None Robot Schematics ------------------ None Fabricated ------------ Nothing Repaired ---------- Nothing Studied --------- None Alien Tech Used ----------------- None Achievements -------------- None Challenges ------------ None Game ------ Seed SurveybotChargeJoltstriker Manual? 0 Play Time 00:43:08 Cumulative 100.0 hours Start 2026.07.22 @ 01:35:17 End 2026.07.22 @ 02:20:15 Sessions 1 Manual Loads 0 Difficulty Rogue Special Mode None Game No. 112 Rogue 58 Adventurer 54 Explorer 0 Win Type - Total 2 Types 2/0/0/0/0/0/0/0/0/0 Lore% 45 Gallery% 47 Achievement% 43 Wizard Run 0 Options --------- Layout 1 ASCII 0 Keyboard 0 Movement Mouse Keybinds 1 Fullscreen 1 Font 32/Tamsyn Map View 50x35 Zoom Use 0% Tactical HUD 1 Map Filters NONE Filters NONE Steam 1 RUN: 3535754a-1b22-4754-9cd1-c5ccff65d323